bitfinex/quotes_ETHUSD_20240915
["timestamp","ask_amount","ask_price","bid_price","bid_amount"]
[1726383918164,0.039747,2428.3,2428.1,0.28579927]
[1726383918467,0.039747,2428.3,2428.2,0.28571666]
[1726383918841,0.039747,2428.3,2428.0,5.53202445]
[1726383919061,0.039747,2428.3,2428.2,0.28571666]
[1726383919260,0.039747,2428.3,2428.0,5.53202445]
[1726383919466,0.039747,2428.3,2428.2,0.28571666]
[1726383919773,0.6961287,2428.3,2428.0,1.41350445]
[1726383919925,0.6961287,2428.3,2428.2,0.28571666]
[1726383920657,0.6961287,2428.3,2428.0,5.53208445]
[1726383920861,0.039747,2428.3,2428.2,0.28571666]
[1726383921060,0.039747,2428.3,2428.0,5.53208445]
[1726383921266,0.039747,2428.3,2428.2,0.28571666]
[1726383921448,0.039747,2428.3,2428.1,0.28579927]
[1726383921657,0.039747,2428.3,2428.0,5.53208445]
[1726383921968,0.039747,2428.3,2428.1,0.28579927]
[1726383929684,0.039747,2428.3,2428.2,1.41350445]
[1726383930164,0.039747,2428.3,2428.2,1.6991882]
[1726383932061,0.039747,2428.3,2428.2,1.77666648]
[1726383940165,0.039747,2428.3,2428.2,10.01320648]
[1726383940351,0.039747,2428.3,2428.2,13.35831494]
[1726383940982,0.039747,2428.3,2428.2,12.49680648]
[1726383949608,0.039747,2428.3,2428.2,5.89493648]
[1726383960722,0.039747,2428.3,2428.2,1.77666648]
[1726383966324,0.039747,2428.3,2428.2,5.89493648]
[1726383973427,2.469747,2428.3,2428.2,0.36316203]
[1726383973649,2.7167217,2428.3,2428.2,0.36316203]
[1726383975190,2.469747,2428.3,2428.2,0.36316203]
[1726383988796,0.039747,2428.3,2428.2,0.36316203]
[1726383995589,0.039747,2428.3,2428.2,4.48143203]
[1726383998704,6.438547,2428.3,2428.2,0.36316203]
[1726383998904,11.33019983,2428.3,2428.2,0.36316203]
[1726384000816,10.51724,2428.2,2428.1,0.86150846]
[1726384001233,2.2807,2427.9,2427.5,6.39436291]
[1726384002017,2.2807,2427.9,2427.6,0.2964582]
[1726384002419,0.86637906,2427.8,2427.6,0.2964582]
[1726384002805,2.4266,2427.7,2427.6,0.2964582]
[1726384018449,6.54572,2427.7,2427.6,0.2964582]
[1726384018657,7.612189,2427.7,2427.6,0.2964582]
[1726384018851,7.612189,2427.7,2427.3,1.41350445]
[1726384019386,7.612189,2427.7,2427.4,0.29669137]
[1726384020647,2.4266,2428.0,2427.5,1.41350445]
[1726384020860,2.4266,2428.0,2427.7,3.68040445]
[1726384021176,2.4266,2428.0,2427.8,0.28646057]
[1726384021473,3.081116,2428.0,2427.7,3.68040445]
[1726384021633,3.081116,2428.0,2427.9,0.28637918]
[1726384022130,3.081116,2428.0,2427.7,3.68040445]
[1726384022336,3.081116,2428.0,2427.8,0.286465]
[1726384022539,3.081116,2428.0,2427.7,3.68040445]
[1726384022734,3.081116,2428.0,2427.8,0.286465]
[1726384022930,3.081116,2428.0,2427.7,3.68040445]
[1726384023147,3.081116,2428.0,2427.8,0.28653242]
[1726384023434,3.081116,2428.0,2427.7,3.68040445]
[1726384023630,3.081116,2428.0,2427.9,0.2864466]
[1726384023831,3.081116,2428.0,2427.8,0.28653242]
[1726384024037,2.4266,2428.0,2427.9,0.2864466]
[1726384024462,2.4266,2428.0,2427.7,3.68040445]
[1726384024661,2.4266,2428.0,2427.9,0.2864466]
[1726384024982,3.081116,2428.0,2427.9,0.2864466]
[1726384025273,3.081116,2428.0,2427.7,3.68040445]
[1726384025582,2.4266,2428.0,2427.8,0.28653242]
[1726384025784,2.4266,2428.0,2427.7,3.68040445]
[1726384025931,2.4266,2428.0,2427.9,0.2864466]
[1726384026136,2.4266,2428.0,2427.7,3.68040445]
[1726384026368,2.4266,2428.0,2427.9,0.2864466]
[1726384026593,2.4266,2428.0,2427.7,3.68040445]
[1726384026798,2.4266,2428.0,2427.9,0.2864466]
[1726384027003,2.4266,2428.0,2427.7,3.68040445]
[1726384027199,2.4266,2428.0,2427.9,0.2864466]
[1726384027404,2.4266,2428.0,2427.7,3.68040445]
[1726384027599,2.4266,2428.0,2427.9,0.2864466]
[1726384028212,2.4266,2428.0,2427.7,3.68040445]
[1726384028387,2.4266,2428.0,2427.9,0.2863888]
[1726384028737,2.4266,2428.0,2427.7,3.68040445]
[1726384028738,3.081116,2428.0,2427.7,3.68040445]
[1726384029010,2.4266,2428.0,2427.9,0.2863888]
[1726384029192,2.4266,2428.0,2427.8,0.28647462]
[1726384029396,2.4266,2428.0,2427.7,3.68040445]
[1726384029607,2.4266,2428.0,2427.9,0.2863888]
[1726384029904,3.081116,2428.0,2427.7,3.68040445]
[1726384030110,2.4266,2428.0,2427.8,0.28647462]
[1726384030319,2.4266,2428.0,2427.7,3.68040445]
[1726384030468,2.4266,2428.0,2427.9,0.2863888]
[1726384030813,2.4266,2428.0,2427.7,3.68040445]
[1726384031016,2.4266,2428.0,2427.9,0.2863888]
[1726384031185,2.4266,2428.0,2427.8,0.28647462]
[1726384031382,2.4266,2428.0,2427.7,3.68040445]
[1726384031608,2.4266,2428.0,2427.9,0.2863888]
[1726384031811,3.081116,2428.0,2427.8,0.28647462]
[1726384032017,2.4266,2428.0,2427.7,1.41350445]
[1726384032308,2.4266,2428.0,2427.8,0.28647462]
[1726384032533,2.4266,2428.0,2427.7,1.41350445]
[1726384032708,2.4266,2428.0,2427.9,0.2863888]
[1726384032888,3.081116,2428.0,2427.7,1.41350445]
[1726384033091,2.4266,2428.0,2427.8,0.28647462]
[1726384033294,2.4266,2428.0,2427.7,1.41350445]
[1726384033478,2.4266,2428.0,2427.8,0.28647462]
[1726384033679,2.4266,2428.0,2427.7,1.41350445]
[1726384033882,2.4266,2428.0,2427.8,0.28647462]
[1726384034200,5.79785889,2428.3,2427.9,1.41350445]
[1726384034201,2.4155,2428.2,2427.9,1.41350445]
[1726384034402,2.4155,2428.2,2427.9,1.69989325]
[1726384034597,3.15019798,2428.2,2427.9,1.69989325]
[1726384041229,2.4155,2428.2,2427.9,1.69989325]
[1726384041405,5.02430606,2428.3,2427.9,1.69989325]
[1726384042115,0.90612606,2428.3,2428.1,1.41350445]
[1726384042298,0.90612606,2428.3,2428.2,0.28609928]
[1726384042299,0.039747,2428.3,2428.2,0.28609928]
[1726384042501,1.08692828,2428.3,2428.2,0.28609928]
[1726384042834,1.08692828,2428.3,2427.9,5.53219445]
[1726384043130,0.039747,2428.3,2427.9,5.53219445]
[1726384043285,0.039747,2428.3,2428.0,0.28627088]
[1726384049038,0.039747,2428.3,2428.0,1.27057088]
[1726384059223,0.039747,2428.3,2428.0,1.27057088]
[1726384064788,5.02425606,2428.3,2428.0,1.27057088]
[1726384066676,0.90612606,2428.3,2428.0,1.27057088]
[1726384067245,2.36511934,2428.3,2428.0,1.27057088]
[1726384069780,4.11841,2428.2,2428.0,1.27057088]
[1726384070105,2.431,2428.1,2428.0,1.27057088]
[1726384077626,3.29737906,2428.1,2428.0,1.27057088]
[1726384081332,3.29737906,2428.1,2428.0,1.65192075]
[1726384081896,0.86637906,2428.1,2428.0,1.65192075]
[1726384082131,0.86637906,2428.1,2428.0,1.65192207]
[1726384083372,0.86637906,2428.1,2428.0,1.65192133]
[1726384088257,6.03360334,2428.1,2428.0,1.65192133]
[1726384088448,8.88959288,2428.1,2428.0,1.27057088]
[1726384088783,13.44122241,2428.1,2428.0,1.27057088]
[1726384088989,11.70846428,2428.1,2428.0,1.27057088]
[1726384089179,13.44031912,2428.1,2428.0,1.27057088]
[1726384089585,12.57438647,2428.1,2428.0,1.27057088]
[1726384089802,8.88890757,2428.1,2428.0,1.27057088]
[1726384089963,8.88880069,2428.1,2428.0,1.27057088]
[1726384094718,13.44031912,2428.1,2428.0,1.27057088]
[1726384095278,13.44031912,2428.1,2428.0,0.9843]
[1726384095788,13.44031912,2428.1,2428.0,1.26121985]
[1726384098790,13.44031912,2428.1,2428.0,0.9843]
[1726384103118,12.25846428,2428.1,2428.0,0.9843]
[1726384103339,14.42045044,2428.1,2428.0,0.9843]
[1726384103540,17.42045044,2428.1,2428.0,0.9843]
[1726384103717,15.25846428,2428.1,2428.0,0.9843]
[1726384104210,17.41987721,2428.1,2428.0,0.9843]
[1726384106148,17.41951281,2428.1,2428.0,0.9843]
[1726384106352,21.53795281,2428.1,2428.0,0.9843]
[1726384106558,17.41951281,2428.1,2428.0,0.9843]
[1726384107236,21.53795281,2428.1,2428.0,0.9843]
[1726384107551,19.37690428,2428.1,2428.0,0.9843]
[1726384108230,21.53709878,2428.1,2428.0,0.9843]
[1726384109313,19.37690428,2428.1,2428.0,0.9843]
[1726384110136,23.49534428,2428.1,2428.0,0.9843]
[1726384110459,19.37690428,2428.1,2428.0,0.9843]
[1726384111358,21.97016251,2428.1,2428.0,0.9843]
[1726384111653,23.6845163,2428.1,2428.0,0.9843]
[1726384112238,19.37690428,2428.1,2428.0,0.9843]
[1726384112413,21.09109667,2428.1,2428.0,0.9843]
[1726384113052,19.37690428,2428.1,2428.0,0.9843]
[1726384113258,21.09113391,2428.1,2428.0,0.9843]
[1726384113416,23.68439214,2428.1,2428.0,0.9843]
[1726384113615,21.09113391,2428.1,2428.0,0.9843]
[1726384113816,19.37690428,2428.1,2428.0,0.9843]
[1726384119089,19.80791895,2428.1,2428.0,0.9843]
[1726384131279,24.11272499,2428.1,2428.0,0.9843]
[1726384131630,24.11272499,2428.1,2427.4,2.2603]
[1726384131631,8.23892,2427.5,2427.4,2.2603]
[1726384131819,9.10272721,2427.5,2427.4,2.2603]
[1726384136287,8.23892,2427.5,2427.4,2.2603]
[1726384136802,9.10317177,2427.5,2427.4,2.2603]
[1726384137208,8.23892,2427.5,2427.4,2.2603]
[1726384137377,9.77706652,2427.5,2427.4,2.2603]
[1726384137777,11.07277733,2427.5,2427.4,2.2603]
[1726384141198,9.77706652,2427.5,2427.4,2.2603]
[1726384141998,11.50468094,2427.5,2427.4,2.2603]
[1726384145726,4.1201,2427.2,2426.9,2.3057]
[1726384145932,4.98543853,2427.2,2426.9,2.3057]
[1726384146227,4.98543853,2427.2,2427.1,2.3057]
[1726384146739,4.98543853,2427.2,2427.1,2.58361404]
[1726384152760,9.10555853,2427.2,2427.1,2.58361404]
[1726384153056,9.5382278,2427.2,2427.1,2.58361404]
[1726384162263,9.5382278,2427.2,2427.1,0.27791404]
[1726384162264,10.88136614,2427.2,2427.1,0.27791404]
[1726384162778,4.12015,2427.1,2426.9,2.3057]
[1726384162985,4.98635975,2427.1,2426.9,2.3057]
[1726384167002,4.98635975,2427.1,2427.0,0.27822795]
[1726384167563,4.98634975,2427.1,2427.0,0.27822795]
[1726384169394,4.12014,2427.1,2427.0,0.27822795]
[1726384172070,9.5381278,2427.2,2427.0,0.27822795]
[1726384173173,4.12014,2427.1,2427.0,0.27822795]
[1726384173662,5.4180678,2427.2,2427.0,0.27822795]
[1726384175163,1.2980078,2427.1,2427.0,0.27822795]
[1726384178715,1.2980078,2427.1,2426.9,2.3057]
[1726384178914,0.86647561,2427.0,2426.9,2.3057]
[1726384182126,0.86647561,2427.0,2426.9,2.58404597]
[1726384187533,5.4181878,2427.1,2426.9,2.58404597]
[1726384187708,4.12018,2427.1,2426.9,2.58404597]
[1726384188399,4.944204,2427.1,2426.9,2.58404597]
[1726384189107,0.86663816,2427.0,2426.9,2.58404597]
[1726384193209,4.944204,2427.1,2426.9,2.58404597]
[1726384200104,0.86674077,2427.0,2426.9,2.58404597]
[1726384208163,0.86674077,2427.0,2426.9,0.27834597]
[1726384208333,0.86674077,2427.0,2426.7,3.22526966]
[1726384208534,0.86674077,2427.0,2426.8,0.2784566]
[1726384208734,0.86674077,2427.0,2426.7,3.22526966]
[1726384208958,0.86674077,2427.0,2426.8,0.2784566]
[1726384209164,0.86674077,2427.0,2426.7,3.22526966]
[1726384209463,0.86674077,2427.0,2426.8,0.2784566]
[1726384209963,0.86674077,2427.0,2426.9,0.2783707]
[1726384210131,6.51528052,2427.0,2426.7,3.22526966]
[1726384210331,6.94865091,2427.0,2426.8,0.2784566]
[1726384210633,6.94865091,2427.0,2426.7,2.3601]
[1726384210838,0.86674589,2426.8,2426.7,2.3601]
[1726384211237,0.86674589,2426.8,2426.5,4.63877411]
[1726384211828,1.64401338,2426.9,2426.5,4.63877411]
[1726384212120,5.76454338,2426.9,2426.6,0.2786541]
[1726384213322,0.86674589,2426.8,2426.6,0.2786541]
[1726384215886,5.76454338,2426.9,2426.6,0.2786541]
[1726384222870,4.12066,2426.8,2426.6,0.2786541]
[1726384232199,5.47092145,2426.8,2426.6,0.2786541]
[1726384234712,4.12082,2426.7,2426.6,0.2786541]
[1726384235015,4.12082,2426.7,2426.4,0.86516966]
[1726384235166,4.12082,2426.7,2426.6,0.32120341]
[1726384235368,4.12082,2426.7,2426.4,0.86516966]
[1726384235565,1.28105873,2426.6,2426.5,0.32132642]
[1726384236622,1.28105873,2426.6,2426.3,3.32066966]
[1726384236774,1.28105873,2426.6,2426.5,0.32132642]
[1726384236975,1.28105873,2426.6,2426.3,3.32066966]
[1726384237211,1.28105873,2426.6,2426.4,0.32141409]
[1726384245300,4.12082,2426.7,2426.4,0.32141409]
[1726384247130,4.12082,2426.7,2426.4,1.73491854]
[1726384254394,7.33950589,2426.8,2426.4,1.73491854]
[1726384254588,0.86674589,2426.7,2426.4,2.6000882]
[1726384254790,1.7307076,2426.7,2426.4,2.6000882]
[1726384255030,0.86674589,2426.7,2426.4,2.6000882]
[1726384264869,3.21884589,2426.8,2426.4,6.7213782]
[1726384265027,0.86674589,2426.8,2426.5,2.3046]
[1726384265378,0.86674589,2426.8,2426.6,0.32133519]
[1726384265579,2.08087375,2426.8,2426.6,0.32133519]
[1726384266828,0.86674589,2426.7,2426.6,0.32133519]
[1726384271123,0.86674589,2426.7,2426.6,0.70348964]
[1726384272466,0.86674589,2426.7,2426.6,0.32133519]
[1726384272669,0.86674589,2426.7,2426.6,0.70349188]
[1726384275598,0.86674589,2426.7,2426.6,0.32133519]
[1726384275991,0.86674589,2426.7,2426.6,0.70348227]
[1726384276499,0.86674589,2426.7,2426.6,0.32133519]
[1726384276696,0.86674589,2426.7,2426.6,0.70348154]
[1726384282507,0.86674589,2426.7,2426.6,0.32133519]
[1726384282668,0.86674589,2426.7,2426.6,0.70349209]
[1726384286362,0.86674589,2426.7,2426.6,0.32133519]
[1726384286770,0.86674589,2426.7,2426.6,0.70349862]
[1726384289464,0.86674589,2426.7,2426.6,0.32133519]
[1726384289787,0.86674589,2426.7,2426.6,0.70349496]
[1726384292926,0.86674589,2426.7,2426.6,0.32133519]
[1726384293245,0.86674589,2426.7,2426.6,0.70352806]
[1726384296610,0.86674589,2426.7,2426.6,0.32133519]
[1726384297011,0.86674589,2426.7,2426.6,0.70352109]
[1726384299955,0.86674589,2426.7,2426.6,0.32133519]
[1726384300262,0.86674589,2426.7,2426.6,0.70352221]
[1726384300439,0.86674589,2426.7,2426.6,1.08570154]
[1726384303460,0.86674589,2426.7,2426.6,0.70352221]
[1726384303951,0.86674589,2426.7,2426.6,1.08569358]
[1726384306326,0.86674589,2426.7,2426.6,0.70350656]
[1726384306762,0.86674589,2426.7,2426.6,0.32133519]
[1726384307153,0.86674589,2426.7,2426.6,0.70351582]
[1726384307356,0.86674589,2426.7,2426.6,1.08569647]
[1726384310242,0.86674589,2426.7,2426.6,0.70351582]
[1726384310439,0.86674589,2426.7,2426.6,1.08570137]
[1726384313638,0.86674589,2426.7,2426.6,1.08570731]
[1726384316340,0.86674589,2426.7,2426.6,0.70352668]
[1726384317181,0.86674589,2426.7,2426.6,0.32133519]
[1726384317489,0.86674589,2426.7,2426.6,0.70345547]
[1726384317847,0.86674589,2426.7,2426.6,1.08558429]
[1726384318443,0.86674589,2426.7,2426.6,1.0855832]
[1726384319994,0.86674589,2426.7,2426.6,0.70345547]
[1726384320168,0.86674589,2426.7,2426.6,1.08558301]
[1726384322417,7.35946589,2426.7,2426.6,1.08558301]
[1726384322715,7.79324294,2426.7,2426.6,1.08565488]
[1726384323018,3.67244717,2426.7,2426.6,1.08565488]
[1726384323167,3.67244717,2426.7,2426.6,0.70345547]
[1726384323365,5.37534084,2426.7,2426.6,0.70345547]
[1726384323560,5.37534084,2426.7,2426.6,1.08565107]
[1726384323968,9.49616084,2426.7,2426.6,0.70345547]
[1726384324170,7.79326717,2426.7,2426.6,0.70345547]
[1726384324482,7.79326717,2426.7,2426.6,1.08562559]
[1726384325093,6.49272,2426.7,2426.6,1.08562559]
[1726384325267,7.85745987,2426.7,2426.6,1.08562559]
[1726384325480,9.15800704,2426.7,2426.6,1.08562559]
[1726384326413,7.85745987,2426.7,2426.6,0.70350531]
[1726384326819,7.85745987,2426.7,2426.6,0.32133519]
[1726384326820,9.15800704,2426.7,2426.6,0.32133519]
[1726384327168,9.15800704,2426.7,2426.4,1.41350445]
[1726384327375,2.36801037,2426.6,2426.5,0.3821876]
[1726384330151,2.36801037,2426.6,2426.5,0.38219873]
[1726384332016,2.36801037,2426.6,2426.5,0.69319221]
[1726384336615,2.36801037,2426.6,2426.5,0.31099348]
[1726384336815,1.50121386,2426.6,2426.5,0.31099348]
[1726384337514,1.50121386,2426.6,2426.5,0.6931868]
[1726384338161,2.36801037,2426.6,2426.5,0.6931868]
[1726384339964,2.36801037,2426.6,2426.5,0.31099348]
[1726384340263,2.36801037,2426.6,2426.5,0.69319183]
[1726384341664,1.50121386,2426.6,2426.5,0.69319183]
[1726384342035,2.36801037,2426.6,2426.5,0.69319183]
[1726384344459,1.50121386,2426.6,2426.5,0.69319183]
[1726384344826,2.36801037,2426.6,2426.5,0.69319183]
[1726384347325,0.86679651,2426.6,2426.5,0.69319183]
[1726384348920,0.86679651,2426.6,2426.5,0.69319564]
[1726384350367,0.86679651,2426.6,2426.5,0.31099348]
[1726384350973,0.86679651,2426.6,2426.5,0.69323379]
[1726384355473,4.98778651,2426.6,2426.5,0.31103204]
[1726384355840,4.98778651,2426.6,2426.3,2.317]
[1726384356041,4.98778651,2426.6,2426.5,0.31103204]
[1726384356241,4.98778651,2426.6,2426.4,0.31111971]
[1726384356542,4.98778651,2426.6,2426.5,0.31103204]
[1726384357001,4.98778651,2426.6,2426.3,2.317]
[1726384357291,4.98778651,2426.6,2426.5,0.31103204]
[1726384357443,6.43922303,2426.6,2426.4,0.31111971]
[1726384357645,4.98778651,2426.6,2426.5,0.31103204]
[1726384358064,4.98778651,2426.6,2426.3,2.317]
[1726384358280,4.98778651,2426.6,2426.5,0.31103204]
[1726384358480,5.51032738,2426.6,2426.4,0.31111971]
[1726384358660,4.98778651,2426.6,2426.5,0.31103204]
[1726384359057,4.98778651,2426.6,2426.3,2.317]
[1726384359242,4.98778651,2426.6,2426.5,0.31103204]
[1726384359443,6.43922303,2426.6,2426.5,0.31103204]
[1726384359665,6.43922303,2426.6,2426.3,2.317]
[1726384359860,4.98778651,2426.6,2426.3,2.317]
[1726384360090,4.98778651,2426.6,2426.4,0.31111971]
[1726384365287,0.86679651,2426.5,2426.4,0.31111971]
[1726384365675,4.98778651,2426.6,2426.4,0.31111971]
[1726384365870,0.86679651,2426.5,2426.4,0.31111971]
[1726384366177,4.12099,2426.6,2426.4,0.31111971]
[1726384366178,4.98778651,2426.6,2426.4,0.31111971]
[1726384368063,0.86679651,2426.5,2426.4,0.31111971]
[1726384368271,4.98778651,2426.6,2426.4,0.31111971]
[1726384368652,9.10886651,2426.6,2426.4,0.31111971]
[1726384368888,0.86679651,2426.5,2426.4,0.31111971]
[1726384391464,4.98778651,2426.6,2426.4,0.31111971]
[1726384392088,0.86679651,2426.5,2426.4,0.31111971]
[1726384392860,4.98778651,2426.6,2426.4,0.31111971]
[1726384394067,0.86679651,2426.5,2426.4,0.31111971]
[1726384401879,0.86679651,2426.5,2426.2,1.10703986]
[1726384402079,0.86679651,2426.5,2426.4,0.31112935]
[1726384402704,0.86679651,2426.5,2426.1,3.35486966]
[1726384402920,0.86679651,2426.5,2426.4,0.31112935]
[1726384403119,4.98795651,2426.5,2426.1,3.35486966]
[1726384403420,7.25505651,2426.5,2426.2,1.10703651]
[1726384403713,7.25505651,2426.5,2426.2,0.3113047]
[1726384403714,3.13389651,2426.5,2426.2,0.3113047]
[1726384408822,7.25507651,2426.5,2426.2,0.3113047]
[1726384409124,3.13389651,2426.5,2426.2,0.3113047]
[1726384411310,7.25508651,2426.5,2426.2,0.3113047]
[1726384413423,0.86679651,2426.4,2426.2,0.3113047]
[1726384417616,0.86679651,2426.4,2426.3,0.38232275]
[1726384418011,0.86679651,2426.4,2426.3,0.69353337]
[1726384418207,0.86679651,2426.4,2426.3,0.31121062]
[1726384418416,0.86679651,2426.4,2426.3,0.69353297]
[1726384418711,0.86679651,2426.4,2426.3,0.38232235]
[1726384418902,0.86679651,2426.4,2426.3,0.31121062]
[1726384419095,0.86679651,2426.4,2426.1,3.35486966]
[1726384419418,0.86679651,2426.4,2426.2,1.41836195]
[1726384419599,0.86679651,2426.4,2426.2,0.3112983]
[1726384421598,6.25589888,2426.4,2426.2,0.3112983]
[1726384421755,11.85854717,2426.3,2426.2,0.3112983]
[1726384421955,11.85847799,2426.3,2426.2,0.3112983]
[1726384422255,4.12193,2426.1,2425.8,3.26516966]
[1726384422442,9.11052334,2426.1,2425.8,2.4]
[1726384422742,4.98858334,2426.1,2425.8,2.4]
[1726384423352,4.12202,2426.0,2425.7,0.86516966]
[1726384424228,4.12202,2426.0,2425.7,1.10758048]
[1726384424545,4.12202,2426.0,2425.7,1.10756897]
[1726384424749,4.12202,2426.0,2425.7,0.49557926]
[1726384424909,4.12202,2426.0,2425.7,1.36074892]
[1726384425106,4.12202,2426.0,2425.7,0.86516966]
[1726384425335,4.12202,2426.0,2425.7,0.61198407]
[1726384426150,10.59107,2426.1,2425.6,5.66725196]
[1726384426484,6.46913,2426.1,2425.6,4.55967411]
[1726384426661,10.59107,2426.1,2425.6,5.05524298]
[1726384428371,10.59107,2426.1,2425.6,4.55967411]
[1726384430142,4.12202,2426.0,2425.6,4.55967411]
[1726384430476,4.12202,2426.0,2425.6,3.69450445]
[1726384432533,4.1222,2425.9,2425.6,3.69450445]
[1726384437047,4.1222,2425.9,2425.7,0.29141156]
[1726384441284,10.59114,2426.1,2425.7,0.29141156]
[1726384449134,6.46914,2426.1,2425.7,0.29141156]
[1726384450306,11.73680933,2426.1,2425.7,0.29141156]
[1726384451786,7.61486933,2426.1,2425.7,0.29141156]
[1726384452286,11.73680933,2426.1,2425.7,0.29141156]
[1726384453698,11.73679933,2426.1,2425.7,0.29141156]
[1726384454300,7.61486933,2426.1,2425.7,0.29141156]
[1726384454626,11.73679933,2426.1,2425.7,0.29141156]
[1726384455000,7.61486933,2426.1,2425.7,0.29141156]
[1726384459311,0.84815227,2426.0,2425.7,0.29141156]
[1726384459516,7.61486933,2426.1,2425.7,0.29141156]
[1726384462456,8.48152267,2426.1,2425.7,0.29141156]
[1726384466160,0.86665334,2426.0,2425.8,2.3549]
[1726384466565,0.86665334,2426.0,2425.9,0.29125543]
[1726384472254,12.61797168,2426.0,2425.9,0.29125543]
[1726384472489,13.05204934,2426.0,2425.9,0.29125543]
[1726384472791,8.93005163,2426.0,2425.9,0.29133905]
[1726384473303,8.93005382,2426.0,2425.9,0.29133905]
[1726384473459,4.12219,2425.9,2425.6,0.86516966]
[1726384473795,6.58238755,2425.9,2425.6,0.86516966]
[1726384474339,0.86708408,2425.8,2425.5,2.27867411]
[1726384477646,0.86708408,2425.8,2425.5,1.41350445]
[1726384479005,2.3558,2425.8,2425.5,1.41350445]
[1726384481250,2.3558,2425.8,2425.5,1.90927535]
[1726384481868,2.3558,2425.8,2425.5,1.9092773]
[1726384482077,6.47815,2425.8,2425.5,1.9092773]
[1726384482371,6.47815,2425.8,2425.6,0.29160221]
[1726384482571,2.3558,2425.8,2425.6,0.29160221]
[1726384483131,6.47815,2425.8,2425.6,0.29160221]
[1726384486488,2.3558,2425.8,2425.6,0.29160221]
[1726384487166,6.47815,2425.8,2425.6,0.29160221]
[1726384502074,4.12235,2425.8,2425.6,0.29160221]
[1726384508669,4.98927408,2425.9,2425.6,0.29160221]
[1726384508670,4.12252,2425.7,2425.6,0.29160221]
[1726384510546,4.12252,2425.7,2425.5,1.36090362]
[1726384510749,9.11159408,2425.9,2425.6,0.29166011]
[1726384511288,4.12238,2425.8,2425.6,0.29166011]
[1726384514471,4.98946408,2425.8,2425.6,0.29166011]
[1726384514640,4.12238,2425.8,2425.6,0.29166011]
[1726384515468,4.98946408,2425.8,2425.6,0.29166011]
[1726384517569,4.98946408,2425.8,2425.6,1.15682977]
[1726384519196,6.44457219,2425.8,2425.6,1.15682977]
[1726384522295,4.12252,2425.7,2425.6,1.15682977]
[1726384522507,4.12252,2425.7,2425.6,1.65250991]
[1726384523029,4.12252,2425.7,2425.6,1.15682977]
[1726384523231,4.12252,2425.7,2425.6,1.6525075]
[1726384524408,4.12252,2425.7,2425.6,0.78733784]
[1726384529351,4.12252,2425.7,2425.6,0.29166011]
[1726384529517,4.12252,2425.7,2425.6,0.78736589]
[1726384530514,4.12252,2425.7,2425.6,0.29166011]
[1726384530713,4.12252,2425.7,2425.6,0.78735846]
[1726384531215,4.12252,2425.7,2425.6,0.29166011]
[1726384533848,4.12252,2425.7,2425.5,0.86516966]
[1726384534154,4.12252,2425.7,2425.6,0.29172442]
[1726384534925,4.98960408,2425.7,2425.6,0.29172442]
[1726384539581,4.98960408,2425.7,2425.6,0.6743766]
[1726384539938,4.98960408,2425.7,2425.6,0.29172442]
[1726384540249,6.25913804,2425.7,2425.4,4.67332111]
[1726384540466,6.25913804,2425.7,2425.6,0.67436206]
[1726384540467,4.98960408,2425.7,2425.6,0.67436206]
[1726384540664,4.98960408,2425.7,2425.6,0.38263764]
[1726384540863,4.98960408,2425.7,2425.6,0.67436206]
[1726384543542,4.98960408,2425.7,2425.6,0.29172442]
[1726384543853,4.98960408,2425.7,2425.6,0.38265742]
[1726384543854,5.39205396,2425.7,2425.6,0.38265742]
[1726384544056,6.25913804,2425.7,2425.6,0.67438184]
[1726384544264,6.25913804,2425.7,2425.6,0.6743696]
[1726384549528,4.98960408,2425.7,2425.6,0.6743696]
[1726384554216,4.98960408,2425.7,2425.6,0.29172442]
[1726384554571,4.98960408,2425.7,2425.4,3.25981666]
[1726384554775,4.98960408,2425.7,2425.6,0.38266264]
[1726384555022,4.98960408,2425.7,2425.6,0.67442888]
[1726384555616,4.98960408,2425.7,2425.6,1.0570914]
[1726384557824,4.98960408,2425.7,2425.6,0.67442888]
[1726384558600,4.98960408,2425.7,2425.6,0.67445011]
[1726384559226,6.43250619,2425.7,2425.6,0.29176624]
[1726384559381,6.43250619,2425.7,2425.6,0.67445445]
[1726384561028,6.43250619,2425.7,2425.6,0.29176624]
[1726384561229,6.43250619,2425.7,2425.6,0.67444929]
[1726384561442,6.43250619,2425.7,2425.6,0.38268305]
[1726384561624,6.43250619,2425.7,2425.6,0.67446539]
[1726384562301,6.43250619,2425.7,2425.6,0.29178234]
[1726384562609,6.43250619,2425.7,2425.4,3.25981666]
[1726384562810,4.98960408,2425.7,2425.6,0.38266594]
[1726384563035,4.98960408,2425.7,2425.6,0.29178234]
[1726384563414,4.98960408,2425.7,2425.4,3.25981666]
[1726384563736,4.98960408,2425.7,2425.5,0.29187007]
[1726384564700,4.12252,2425.7,2425.5,0.29187007]
[1726384566402,4.12252,2425.7,2425.5,1.70537452]
[1726384566734,4.98947408,2425.8,2425.5,1.70537452]
[1726384566892,9.11198408,2425.8,2425.5,1.70537452]
[1726384567096,4.12253,2425.7,2425.5,1.70537452]
[1726384569155,4.98961408,2425.7,2425.5,1.70537452]
[1726384572858,0.86708408,2425.7,2425.5,1.70537452]
[1726384573013,4.98961408,2425.7,2425.5,1.70537452]
[1726384573211,4.98947408,2425.8,2425.5,2.57054418]
[1726384574158,9.11198408,2425.8,2425.5,2.57054418]
[1726384574356,0.86708408,2425.7,2425.5,1.70537452]
[1726384579736,0.86708408,2425.7,2425.5,2.57054418]
[1726384588054,0.86708408,2425.7,2425.5,1.70537452]
[1726384595806,0.86708408,2425.7,2425.5,2.57054418]
[1726384597526,0.86708408,2425.7,2425.5,1.15703973]
[1726384600078,0.86708408,2425.7,2425.5,0.29187007]
[1726384600702,0.86708408,2425.7,2425.5,1.15703973]
[1726384601817,0.86708408,2425.7,2425.5,0.29187007]
[1726384602682,0.86708408,2425.7,2425.5,1.15703973]
[1726384603613,0.86708408,2425.7,2425.5,2.57054418]
[1726384614458,4.98963408,2425.7,2425.5,2.57054418]
[1726384614663,4.98963408,2425.7,2425.5,1.15703973]
[1726384619888,0.86708408,2425.7,2425.5,2.57054418]
[1726384620087,11.47774408,2425.8,2425.6,0.49554061]
[1726384620416,7.35527408,2425.8,2425.7,0.2760783]
[1726384620603,7.35527408,2425.8,2425.5,2.27867411]
[1726384620806,7.35527408,2425.8,2425.6,1.38360714]
[1726384621117,0.86708408,2425.7,2425.6,0.27616603]
[1726384621296,0.86708408,2425.7,2425.6,0.88811353]
[1726384623121,0.86708408,2425.7,2425.6,1.27058884]
[1726384625372,0.86708408,2425.7,2425.6,0.27616603]
[1726384625574,0.86708408,2425.7,2425.6,1.27058218]
[1726384625780,0.86708408,2425.7,2425.6,0.88811443]
[1726384625987,0.86708408,2425.7,2425.6,0.27616603]
[1726384628575,6.27841353,2425.7,2425.6,0.27616603]